Cogmind - Beta 12 @@@ ROGUE MODE // 2023.10.07 @ 22:25:28 Player: ILikeMonsters1890 Result: Destroyed by G-67 Veteran with Plasma Rifle Performance ------------- Evolutions (6) 3000 Regions Visited (27) 5400 Robots Destroyed (236) 1180 Value Destroyed (7908) 7908 Prototype IDs (58) 1160 Alien Tech Used (2) 400 Bonus (2367) 2367 TOTAL SCORE: 21415 Bonus ------- High Alert Combat Kills 61 Follower Combat Kills 940 Met Data Miner 300 Met Imprinter 300 Met Zhirov 300 Met Warlord at Base 500 MAIN.C Attacked Warlord 500 Friendly Fire -534 Cogmind --------- Core Integrity 0/1150 Matter 300/300 Energy 319/325 System Corruption 1% Temperature Cool (8) Movement Hovering (45) Location -3/Proximity Caves Parts ------- > --- POWER (2) -------- Backup Power III Antimatter Reactor > --- PROPULSION (5) --- Antigrav System Gyrokinetic Inverter Cooled Antigrav System Cooled Antigrav System > --- UTILITY (10) ----- Improved Heat Sink Experimental Targeting Computer Transmission Jammer Advanced Reaction Control System Improved Core Shielding Backup Plating III Backup Plating III Makeshift Ablative Armor Makeshift System Shield > --- WEAPON (2) ------- Phasing Sabre Makeshift Spear > --- INVENTORY (5) ---- Light Antimatter Reactor Light Antimatter Reactor Experimental Myomer Leg Improved Core Shielding Makeshift Spear Peak State ------------ > --- POWER ------------ Neutrino Core Neutrino Core > --- PROPULSION ------- Advanced Myomer Leg Advanced Myomer Leg Advanced Myomer Leg Armored Huge Wheel > --- UTILITY ---------- Advanced Cooling System High-capacity Storage Unit Enhanced Optical Array Advanced Sensor Array Improved Core Shielding Layered Medium Armor Plating Improved Remote Shield Hacking Suite > --- WEAPON ----------- Dispersion Rifle Precision Rocket Launcher > --- INVENTORY -------- Wheel Compact Wheel Armored Huge Wheel Advanced Heat Sink Improved Cooling System Improved Coolant Injector Large Storage Unit Improved Core Shielding Improved Medium Armor Plating Improved Focal Shield Improved Shield Generator Transdimensional Reconstructor Heavy Laser Heavy Laser Makeshift Laser Autogun Autogun Heavy Missile Launcher [Rating: 101] Favorites ----------- Power Neutrino Core Engine Angular Momentum Engine Power Core Neutrino Core Reactor Antimatter Reactor Propulsion Aluminum Leg Treads Improved Treads Leg Aluminum Leg Wheel Armored Huge Wheel Hover Unit Gyrokinetic Inverter Flight Unit Improved Surge Thruster Utility Large Storage Unit Device Seismic Detector Storage Large Storage Unit Processor Enhanced Optical Array Hackware Hacking Suite Protection Improved Medium Armor Plating Weapon Cooled Pulse Rifle Energy Gun Cooled Pulse Rifle Energy Cannon Beam Cannon Ballistic Gun Autogun Launcher Precision Rocket Launcher Impact Weapon Shock Maul Slashing Weapon Phasing Sabre Piercing Weapon Makeshift Spear Build | -11 -10 -10 -10 -9 -8 -7 -7 -7 -7 -6 -6 -6 -6 -6 -6 -6 -5 -5 -5 -5 -5 -4 -4 -4 -4 -4 -3 ------- Run | Jun Mat Min Exi Min Mat Fac Low Low Zio Pro Fac Was Fac Low Low Dat Pro Fac Upp Upp Zhi Pro Fac Upp Upp War Pro Slots Evolved 12 | . . . . . 4 2 . . . . 2 . . . . . . 2 . . . . 2 . . . . Power 1 | . . . . . . . . . . . 1 . . . . . . . . . . . . . . . . Propulsion 3 | . . . . . 2 . . . . . 1 . . . . . . . . . . . . . . . . Utility 8 | . . . . . 2 2 . . . . . . . . . . . 2 . . . . 2 . . . . Weapon . | . . . . . . . . . . . . . . . . . . . . . . . . . . . . Parts Attached 363 | 3 8 4 3 2 36 31 4 8 . 12 11 9 32 6 10 2 21 59 1 9 13 12 31 7 8 20 1 Power 39 | 1 1 1 . . 2 1 . . . 1 3 . 7 1 2 . 2 6 . 1 . 2 3 1 . 4 . Engine 10 | 1 1 . . . . . . . . . 1 . 1 . 2 . 2 . . . . . 1 . . 1 . Core 24 | . . 1 . . 2 1 . . . 1 2 . 5 1 . . . 6 . 1 . 2 1 1 . . . Reactor 5 | . . . . . . . . . . . . . 1 . . . . . . . . . 1 . . 3 . Propulsion 86 | . 3 . . 1 11 5 2 5 . 3 2 . 7 1 . . 6 15 . 1 3 2 11 1 3 4 . Treads 3 | . . . . . . . . . . . . . . . . . 2 1 . . . . . . . . . Leg 52 | . 3 . . 1 11 5 2 5 . 3 2 . 7 1 . . 2 3 . . 3 1 . . 3 . . Wheel 16 | . . . . . . . . . . . . . . . . . 2 9 . 1 . 1 3 . . . . Hover 6 | . . . . . . . . . . . . . . . . . . . . . . . 2 . . 4 . Flight 9 | . . . . . . . . . . . . . . . . . . 2 . . . . 6 1 . . . Utility 131 | 1 1 . 3 1 9 13 1 3 . 4 3 5 11 2 5 . 10 26 . 2 6 . 9 3 2 10 1 Device 81 | 1 . . 1 1 3 7 . 2 . 3 2 2 7 1 5 . 5 16 . 2 6 . 7 3 2 5 . Storage 15 | . 1 . 2 . 2 . . . . . . . 3 . . . 3 3 . . . . 1 . . . . Processor 4 | . . . . . . 1 . . . . . . . 1 . . 1 . . . . . . . . 1 . Hackware 4 | . . . . . . 1 . . . . . . . . . . . 2 . . . . . . . . 1 Protection 27 | . . . . . 4 4 1 1 . 1 1 3 1 . . . 1 5 . . . . 1 . . 4 . Artifact . | . . . . . . . . . . . . . . . . . . . . . . . . . . . . Weapon 107 | 1 3 3 . . 14 12 1 . . 4 3 4 7 2 3 2 3 12 1 5 4 8 8 2 3 2 . Energy Gun 54 | . . 3 . . 12 8 1 . . 2 3 2 4 1 1 2 2 1 1 1 4 4 2 . . . . Energy Cannon 8 | . 2 . . . 1 . . . . . . 1 . . . . . 4 . . . . . . . . . Ballistic Gun 6 | 1 1 . . . . . . . . . . . . . . . . 2 . . . . 2 . . . . Ballistic Cannon . | . . . . . . . . . . . . . . . . . . . . . . . . . . . . Launcher 26 | . . . . . 1 4 . . . 2 . 1 3 1 2 . 1 1 . 3 . 4 2 1 . . . Special Weapon . | . . . . . . . . . . . . . . . . . . . . . . . . . . . . Impact Weapon 1 | . . . . . . . . . . . . . . . . . . 1 . . . . . . . . . Slashing Weapon 7 | . . . . . . . . . . . . . . . . . . 3 . 1 . . . 1 1 1 . Piercing Weapon 5 | . . . . . . . . . . . . . . . . . . . . . . . 2 . 2 1 . Special Melee Weapon . | . . . . . . . . . . . . . . . . . . . . . . . . . . . . Unidentified Prototypes 25 | . . . . . 5 3 . . . . 2 1 2 . . . . 5 . . 3 . 1 . . 3 . Parts Lost 122 | . 1 1 . . 2 2 1 1 . 6 . . 14 1 7 . 15 21 . 3 . 10 20 8 7 2 . Power 18 | . 1 . . . 1 . . . . 1 . . 2 . 2 . 2 2 . 1 . 3 2 1 . . . Propulsion 40 | . . . . . . 1 1 1 . 2 . . 4 1 1 . 5 7 . 1 . 1 9 4 1 1 . Utility 41 | . . . . . 1 1 . . . 3 . . 6 . 3 . 5 7 . . . 3 4 2 5 1 . Weapon 23 | . . 1 . . . . . . . . . . 2 . 1 . 3 5 . 1 . 3 5 1 1 . . Highest Loss Streak 14 | . 1 1 . . 1 1 1 1 . 5 . . 9 1 5 . 12 11 . 1 . 8 14 5 6 2 . To Critical Strikes 1 | . . . . . . . . . . . . . . . . . . 1 . . . . . . . . . Average Slot Usage (%) 87 | . 99 100 98 100 99 98 99 99 100 99 97 99 98 96 91 80 80 88 87 83 84 67 54 51 31 55 85 Engine 3 | . 13 4 . . . . . . . . 5 6 6 4 12 13 11 1 . . . . . . . 8 5 Core 5 | . . 9 14 14 9 7 7 7 7 7 6 6 5 8 . . . 7 11 10 11 2 . 2 . . . Leg 21 | . 28 28 28 28 35 30 30 29 30 30 33 33 32 32 26 26 25 3 . . 13 16 6 . 12 4 . Wheel 2 | . . . . . . . . . . . . . . . . . . 13 17 16 7 4 3 . . . . Hover 1 | . . . . . . . . . . . . . . . . . . . . . . . 3 8 5 7 21 Device 15 | . 14 14 13 14 18 8 7 12 23 22 17 19 21 18 25 26 17 16 11 11 16 8 10 20 6 9 15 Storage 6 | . 14 14 13 14 9 7 7 7 7 7 6 6 6 6 6 6 6 5 5 5 5 5 2 . . . . Processor 3 | . . . . . . 7 7 7 7 6 . . . 4 6 6 5 5 5 5 5 5 5 5 4 . 5 Hackware 2 | . . . . . . 4 7 3 . . . . . . . . . 9 11 11 5 5 5 5 1 . 1 Protection 7 | . . . . . 9 15 15 13 7 7 12 12 10 6 . . . 6 11 11 11 6 4 . . 12 21 Energy Gun 9 | . . 20 28 28 15 14 14 15 15 15 13 12 12 12 12 . 10 . 4 5 3 6 2 . . 2 . Energy Cannon 2 | . 26 7 . . 2 . . . . . . . . . . . . 3 . . . . . . . . . Naked Turns . | . . . . . . . . . . . . . . . . . . . . . . . . . . . . Heaviest Build 97 | 13 20 20 20 20 41 48 48 49 48 55 68 71 84 76 90 90 90 82 79 91 97 97 67 21 8 43 43 Greatest Support 90 | 20 20 20 20 20 52 51 49 66 66 66 72 72 84 78 68 56 76 66 66 66 90 90 28 22 3 48 60 Greatest Overweight (x) 5 | . . . . . . . 1 1 . . . . 1 . 1 1 2 5 1 1 3 3 4 . 2 1 . Average Overweight (x) . | . . . . . . . . . . . . . . . . 1 . 1 1 1 . 1 . . . . . Largest Inventory Capacity 35 | 8 10 10 35 10 15 15 15 15 15 15 15 15 20 20 20 20 20 20 20 20 20 20 20 5 5 5 5 Average Capacity 14 | 8 9 10 10 10 14 15 15 15 15 15 15 15 16 20 20 20 17 18 20 20 20 20 11 5 5 5 5 Most Carried 20 | 6 10 10 10 10 15 15 15 15 15 15 12 13 16 19 19 16 18 20 20 20 20 20 17 5 5 5 5 Average Carried 12 | 4 9 9 9 10 11 14 13 14 15 14 10 12 12 18 15 16 15 13 19 19 19 17 9 3 4 4 5 Final Capacity 20 | 8 10 10 10 10 15 15 15 15 15 15 15 15 20 20 20 20 15 20 20 20 20 20 5 5 5 5 5 Final Carried 20 | 6 10 10 10 10 15 15 13 15 15 9 12 13 16 19 16 16 12 20 20 20 20 15 4 5 3 5 5 Class Distribution -------------------- 39% | Scavenger-Mutant 36% | Mutant 10% | Derelict-Mutant 7% | Hacker-Mutant 3% | Commander-Mutant Dominant Class ---------------- Mutant | -10/Materials Scavenger-Mutant | -10/Mines Scavenger-Mutant | -10/Exiles Scavenger-Mutant | -9/Mines Scavenger-Mutant | -8/Materials Scavenger-Mutant | -7/Factory Scavenger-Mutant | -7/Lower Caves Scavenger-Mutant | -7/Lower Caves Derelict-Mutant | -7/Zion Derelict-Mutant | -6/Proximity Caves Mutant | -6/Factory Mutant | -6/Waste Mutant | -6/Factory Scavenger-Mutant | -6/Lower Caves Mutant | -6/Lower Caves Mutant | -6/Data Miner Mutant | -5/Proximity Caves Scavenger-Mutant | -5/Factory Hacker-Mutant | -5/Upper Caves Hacker-Mutant | -5/Upper Caves Mutant | -5/Zhirov Mutant | -4/Proximity Caves Mutant | -4/Factory Infiltrator-Mutant | -4/Upper Caves Mutant | -4/Upper Caves Commander-Mutant | -4/Warlord Mutant | -3/Proximity Caves Resources | -11 -10 -10 -10 -9 -8 -7 -7 -7 -7 -6 -6 -6 -6 -6 -6 -6 -5 -5 -5 -5 -5 -4 -4 -4 -4 -4 -3 ----------- Run | Jun Mat Min Exi Min Mat Fac Low Low Zio Pro Fac Was Fac Low Low Dat Pro Fac Upp Upp Zhi Pro Fac Upp Upp War Pro Matter Collected 4686 | 284 80 40 . 50 373 380 46 89 . 114 . 272 341 196 185 . 283 597 27 218 158 220 396 60 47 200 30 Remotely . | . . . . . . . . . . . . . . . . . . . . . . . . . . . . Salvage Created 10747 | 213 636 189 . 129 1813 1051 313 265 . 232 24 539 833 159 248 . 425 1543 . 347 299 409 903 27 70 66 14 Parts 475 | 19 34 12 . 7 82 48 8 11 . 16 1 9 45 3 13 . 9 60 . 20 2 23 46 3 2 1 1 Haulers Intercepted 8 | . . . . . 5 1 . . . . . . 1 . . . . 1 . . . . . . . . . Recyclers Shooed 15 | 1 1 2 . . 5 2 . . . . . . 1 . . . . 3 . . . . . . . . . Parts Field Recycled . | . . . . . . . . . . . . . . . . . . . . . . . . . . . . Retrieved Matter . | . . . . . . . . . . . . . . . . . . . . . . . . . . . . Parts Self-Destructed 100 | . . . . . . . 6 8 . 19 . . . 3 7 . 9 . . 13 1 22 . 1 10 . 1 Prevented 3 | . . . . . . . . . . 1 . . . . . . . . . . . . . . 2 . . Kills | -11 -10 -10 -10 -9 -8 -7 -7 -7 -7 -6 -6 -6 -6 -6 -6 -6 -5 -5 -5 -5 -5 -4 -4 -4 -4 -4 -3 ------- Run | Jun Mat Min Exi Min Mat Fac Low Low Zio Pro Fac Was Fac Low Low Dat Pro Fac Upp Upp Zhi Pro Fac Upp Upp War Pro Combat Hostiles Destroyed 159 | . 13 2 . 3 25 16 7 2 . 9 . 1 17 4 6 . 5 11 . 14 . 12 8 1 1 1 1 Melee 13 | . . . . . . . . . . . . . . . . . . 5 . . . . 4 1 1 1 1 Guns 60 | . . . . 3 17 7 6 1 . 3 . . 7 2 3 . 3 1 . 1 . 4 2 . . . . Cannons 23 | . 13 2 . . 4 . . . . . . . . . . . . 4 . . . . . . . . . AOE 58 | . . . . . 3 9 . . . 6 . 1 10 2 3 . 2 . . 12 . 8 2 . . . . Classes Destroyed 22 | 3 3 . . 1 6 2 2 2 . . . 1 . . . . . . . . . . 1 . . . 1 Worker 19 | 2 . . . . 4 2 . . . . . . 5 . . . . 4 . . . . 2 . . . . Builder 5 | . . . . . 1 . . . . . . . 1 . . . . 1 . . . . 2 . . . . Tunneler 8 | 5 . . . . . 2 . . . . . . 1 . . . . . . . . . . . . . . Hauler 8 | . . . . . 5 1 . . . . . . 1 . . . . 1 . . . . . . . . . Recycler 24 | 1 3 1 . . 6 5 . . . . . . . . . . . 5 . . . . 3 . . . . Mechanic 2 | . . . . . . 1 . . . . . . . . . . . . . . . . 1 . . . . Operator 4 | . 1 . . . 1 . . . . . 1 . 1 . . . . . . . . . . . . . . Drone 1 | . . . . . . . . . . . . . . . . . . . . . . . . . . . 1 Watcher 5 | . . . . . 3 1 . . . . . . 1 . . . . . . . . . . . . . . Swarmer 40 | . 6 . . . 7 3 . . . 4 . . 3 . . . 3 . . 9 . 4 . 1 . . . Cutter 2 | . . . . . . . . . . . . . . . . . . . . . . . 2 . . . . Grunt 49 | . 7 2 . 2 9 8 3 . . 4 . . 2 1 4 . 1 . . 2 . 2 2 . . . . Brawler 2 | . . . . 1 . . . . . . . . . . . . 1 . . . . . . . . . . Duelist 6 | . . . . . . . 1 . . . . . . 2 . . . 1 . 1 . 1 . . . . . Sentry 15 | . . . . . 6 3 . . . . . . 2 1 . . . 2 . 1 . . . . . . . Specialist 4 | . . . . . 2 . . . . . . . 2 . . . . . . . . . . . . . . Hunter 12 | . . . . . 1 . 1 1 . 1 . . 5 . . . . . . 1 . . 2 . . . . Programmer 24 | . . . . . . 2 1 . . . . . 3 . 2 . . 8 . . . 5 2 . 1 . . Compactor 1 | . . . . . . . . . . . . 1 . . . . . . . . . . . . . . . Decomposer 1 | . . . . . . . . . . . . . . . . . . . . . . . . . 1 . . Samaritan 4 | . . . . . . . . 1 . . . . . 1 1 . 1 . . . . . . . . . . Thief 1 | . . . . . . . 1 . . . . . . . . . . . . . . . . . . . . Thug 3 | . . . . . . . . 2 . . . . . . . . . . . . . . . . . 1 . Mutant 1 | . . . . . . . . 1 . . . . . . . . . . . . . . . . . . . Best Kill Streak 8 | 4 5 2 . 3 5 6 4 1 . 4 1 1 7 4 4 . 3 6 . 8 . 4 5 1 1 1 1 Combat Bots Only 8 | . 5 2 . 3 4 4 4 1 . 4 . 1 5 4 4 . 3 2 . 8 . 4 2 1 1 1 1 Max Kills in Single Turn 4 | 1 1 1 . 1 3 4 1 1 . 4 1 1 4 2 2 . 1 1 . 2 . 2 1 1 1 1 1 Gunslinging 1 | . . . . . . . . . . . . . . 1 . . . . . . . . . . . . . Exploded 4 | . . . . . 3 3 . . . 4 . 1 3 2 2 . 1 . . 2 . 2 1 . . . . Melee 1 | . . . . . . . . . . . . . . . . . . 1 . . . . 1 1 1 1 1 Uniques/NPCs Destroyed . | . . . . . . . . . . . . . . . . . . . . . . . . . . . . Combat | -11 -10 -10 -10 -9 -8 -7 -7 -7 -7 -6 -6 -6 -6 -6 -6 -6 -5 -5 -5 -5 -5 -4 -4 -4 -4 -4 -3 -------- Run | Jun Mat Min Exi Min Mat Fac Low Low Zio Pro Fac Was Fac Low Low Dat Pro Fac Upp Upp Zhi Pro Fac Upp Upp War Pro Damage Taken 17138 | . 552 60 . 71 975 849 648 183 . 1134 . . 1919 302 445 . 1373 2304 . 614 . 1411 2188 701 847 279 283 Core 2796 | . 94 30 . . 115 109 63 13 . 282 . . 195 15 73 . 263 287 . 16 . 142 500 305 200 65 29 Absorbed by Shields 904 | . . . . . . . . . . 159 . . 172 . 48 . 42 . . 232 . 140 111 . . . . Redirected to Shielding 123 | . . . . . . . . . . . . . . . . . . . . 5 . 52 45 . . 11 10 Regen/Repaired (Parts) 260 | . . . . . 55 . . . 108 . . . . . . . . . . . . . . . . 97 . Core Remaining (%) 58 | 100 . . . 50 79 . . . . 33 . . . . . . 35 . . . . 55 . . . . . Volleys Fired 617 | 18 46 7 . 9 112 44 43 21 1 33 7 11 48 6 21 . 37 39 . 35 23 27 28 1 . . . Largest 2 | 2 2 2 . 2 2 2 2 2 1 2 2 2 2 2 2 . 2 2 . 1 2 2 2 1 . . . Hottest 178 | 70 120 120 . 105 133 160 120 120 20 60 40 100 140 100 100 . 100 178 . 50 150 138 130 39 . . . Shots Fired 1024 | 36 92 14 . 18 221 80 66 42 1 44 14 12 83 9 36 . 48 51 1 36 42 36 41 1 . . . Gun 800 | 36 . 10 . 18 185 72 66 42 1 40 14 10 77 6 32 . 44 12 1 27 42 28 37 . . . . Cannon 170 | . 92 4 . . 35 . . . . . . . . . . . . 39 . . . . . . . . . Launcher 54 | . . . . . 1 8 . . . 4 . 2 6 3 4 . 4 . . 9 . 8 4 1 . . . Special . | . . . . . . . . . . . . . . . . . . . . . . . . . . . . Kinetic 41 | 18 . . . . . . . . . . . . . . . . . 2 . . . . 21 . . . . Thermal 927 | 18 92 14 . 18 220 72 66 42 1 40 14 10 77 6 32 . 44 49 1 27 42 28 14 . . . . Explosive 54 | . . . . . 1 8 . . . 4 . 2 6 3 4 . 4 . . 9 . 8 4 1 . . . Electromagnetic 2 | . . . . . . . . . . . . . . . . . . . . . . . 2 . . . . Robot Hit Streak 26 | 11 6 6 . 8 11 16 12 8 . 5 6 7 12 5 18 . 26 22 8 10 14 9 10 . . . . Robot Miss Streak 6 | 2 4 1 . 1 6 6 3 3 . 3 2 3 2 3 3 . 2 3 . 2 1 2 3 1 . . . Penetration Max . | . . . . . . . . . . . . . . . . . . . . . . . . . . . . Secondary Targets 4 | . . . . 1 . . 2 . . . . . . 1 . . . . . . . . . . . . . Max Gunslinging Chain 1 | . . . . 1 . . 1 . . . . . . 1 . . . . . . . . . . . . . Shots Hit Robots 705 | 25 49 10 . 13 136 59 37 29 . 14 10 8 52 8 27 . 37 71 1 26 16 25 43 2 5 1 1 Core Hits 468 | 9 19 5 . 6 71 66 10 11 . 27 4 5 67 22 22 . 14 27 1 20 6 24 27 1 2 1 1 Critical Kills 4 | . . . . . 1 . . . . . . . 1 . . . . 2 . . . . . . . . . Critical Parts Destroyed 3 | . . . . . . . . . . . . . 1 . 1 . 1 . . . . . . . . . . Critical Strikes 37 | . . . . . 5 . 2 4 . . . 1 4 . 1 . 3 6 1 . 4 . 5 1 . . . Burn 21 | . . . . . 4 . 2 4 . . . . 2 . . . 2 2 1 . 3 . 1 . . . . Meltdown 3 | . . . . . 1 . . . . . . . . . . . . 2 . . . . . . . . . Destroy 7 | . . . . . . . . . . . . 1 2 . 1 . 1 . . . 1 . 1 . . . . Sever 2 | . . . . . . . . . . . . . . . . . . 2 . . . . . . . . . Impale 4 | . . . . . . . . . . . . . . . . . . . . . . . 3 1 . . . Melee Attacks 121 | . . . . . . . . . . . . . . . . . . 44 9 . . . 28 3 13 17 7 Impact . | . . . . . . . . . . . . . . . . . . . . . . . . . . . . Slashing 78 | . . . . . . . . . . . . . . . . . . 44 9 . . . . . 5 16 4 Piercing 43 | . . . . . . . . . . . . . . . . . . . . . . . 28 3 8 1 3 Sneak Attacks 19 | . . . . . . . . . . . . . . . . . . 12 . . . . 6 . 1 . . Combat Hostiles 2 | . . . . . . . . . . . . . . . . . . 1 . . . . 1 . . . . Follow-up Attacks . | . . . . . . . . . . . . . . . . . . . . . . . . . . . . Damage Inflicted 25531 | 339 888 151 . 187 2961 2312 828 681 . 1065 186 406 2983 559 1534 . 1192 3042 17 1580 284 1683 2088 176 285 35 69 Guns 10185 | 339 . 83 . 172 2070 1127 827 681 . 222 186 167 1073 106 604 . 732 225 17 357 284 499 414 . . . . Cannons 2531 | . 878 68 . . 555 . . . . . . . . . . . . 1030 . . . . . . . . . Explosions 9278 | . . . . . 261 1083 . . . 843 . 239 1791 453 930 . 460 . . 1223 . 1184 744 67 . . . Melee 3182 | . . . . . . . . . . . . . . . . . . 1787 . . . . 930 109 285 35 36 Ramming 355 | . 10 . . 15 75 102 1 . . . . . 119 . . . . . . . . . . . . . 33 Kinetic 437 | 190 . . . . . . . . . . . . . . . . . 27 . . . . 220 . . . . Thermal 12546 | 149 878 151 . 172 2625 1127 827 681 . 222 186 167 1356 106 604 . 732 1228 17 357 284 499 178 . . . . Explosive 8973 | . . . . . 261 1083 . . . 843 . 239 1508 453 930 . 460 . . 1223 . 1184 722 67 . . . Electromagnetic 38 | . . . . . . . . . . . . . . . . . . . . . . . 38 . . . . Impact . | . . . . . . . . . . . . . . . . . . . . . . . . . . . . Slashing 1961 | . . . . . . . . . . . . . . . . . . 1787 . . . . . . 103 35 36 Piercing 1221 | . . . . . . . . . . . . . . . . . . . . . . . 930 109 182 . . Highest Corruption 22 | . . . . . . . . . . 16 . . 14 14 16 16 16 13 13 13 13 19 3 3 22 22 1 Average Corruption 10 | . . . . . . . . . . 13 . . 8 14 14 16 11 9 13 13 13 16 1 3 8 22 1 Corruption Purged 6 | . . . . . . . . . . . . . . . . . 6 . . . . . . . . . . Corruption Blocked . | . . . . . . . . . . . . . . . . . . . . . . . . . . . . Effects 250 | . . . . . . . . . . 1 . . 24 10 27 6 37 47 13 21 23 24 6 4 6 1 . Message Errors 73 | . . . . . . . . . . . . . 6 3 7 3 8 9 5 9 11 6 1 2 3 . . Matter Fused 50 | . . . . . . . . . . 1 . . 8 1 7 1 8 8 2 3 4 4 1 . 1 1 . Heat Flow Errors 27 | . . . . . . . . . . . . . 2 1 6 1 6 5 . 2 . 3 1 . . . . Energy Discharges 25 | . . . . . . . . . . . . . 3 1 1 1 4 6 . 1 2 1 3 1 1 . . Parts Rejected 4 | . . . . . . . . . . . . . . . . . . 1 . . . 3 . . . . . Parts Fused 4 | . . . . . . . . . . . . . 1 . . . . 1 1 . . 1 . . . . . Data Loss (minor) 34 | . . . . . . . . . . . . . 2 2 1 . 5 11 3 3 3 2 . 1 1 . . Data Loss (major) 4 | . . . . . . . . . . . . . 1 . . . . . . 1 1 1 . . . . . Misfires 10 | . . . . . . . . . . . . . 1 . 3 . 1 1 1 1 1 1 . . . . . Alerts 10 | . . . . . . . . . . . . . . 2 . . 3 2 1 1 . 1 . . . . . Misdirections 2 | . . . . . . . . . . . . . . . . . 1 1 . . . . . . . . . Weapon Failures 7 | . . . . . . . . . . . . . . . 2 . 1 2 . . 1 1 . . . . . Overload Shots 50 | . . . . . . . 25 6 . 9 . . 6 . . . . . . . 4 . . . . . . Effects 10 | . . . . . . . 4 1 . 2 . . 1 . . . . . . . 2 . . . . . . Energy Bleed 2 | . . . . . . . . 1 . . . . . . . . . . . . 1 . . . . . . Heat Surge 5 | . . . . . . . 3 . . 1 . . 1 . . . . . . . . . . . . . . Short Circuit 3 | . . . . . . . 1 . . 1 . . . . . . . . . . 1 . . . . . . Overflow Damage 845 | . . . . . 42 22 . . . 18 . . 24 6 61 . 75 281 . 67 . 100 149 . . . . Projectiles 11 | . . . . . . . . . . . . . . . . . . 11 . . . . . . . . . Explosions 440 | . . . . . 42 22 . . . 18 . . 24 6 61 . 75 . . 67 . 100 25 . . . . Melee 394 | . . . . . . . . . . . . . . . . . . 270 . . . . 124 . . . . Knockbacks 2 | . . . . . 1 . . . . . . . 1 . . . . . . . . . . . . . . Impact 2 | . . . . . 1 . . . . . . . 1 . . . . . . . . . . . . . . Kinetic . | . . . . . . . . . . . . . . . . . . . . . . . . . . . . Secondary . | . . . . . . . . . . . . . . . . . . . . . . . . . . . . Self-Inflicted Damage 521 | . . . . . . . . . . . . . 201 64 29 . 102 . . . . 66 43 . . . 16 Shots 21 | . . . . . . . . . . . . . 11 3 1 . 3 . . . . 2 1 . . . . Rammed 1 | . . . . . . . . . . . . . . . . . . . . . . . . . . . 1 Targets Rammed 40 | . 5 1 . 2 9 10 1 . . . . . 11 . . . . . . . . . . . . . 1 Kicked 39 | . 5 1 . 2 9 10 1 . . . . . 11 . . . . . . . . . . . . . . Crushed . | . . . . . . . . . . . . . . . . . . . . . . . . . . . . Highest Temperature 423 | 65 423 163 . 204 240 126 171 . . 127 . . 173 221 254 247 254 199 12 253 20 155 158 . . 237 . Average Temperature 87 | 28 160 58 . 94 61 34 97 . . 73 . . 62 119 65 128 89 78 9 112 10 73 101 . . 142 . Received Heat Transfer 2423 | . 162 27 . 36 396 300 168 . . 69 . . 253 69 147 . 138 234 . 24 . 163 165 21 30 . 21 Effects 4 | . 4 . . . . . . . . . . . . . . . . . . . . . . . . . . Shutdowns 1 | . 1 . . . . . . . . . . . . . . . . . . . . . . . . . . Energy Bleed 3 | . 3 . . . . . . . . . . . . . . . . . . . . . . . . . . Siege Activations . | . . . . . . . . . . . . . . . . . . . . . . . . . . . . Robots Corrupted . | . . . . . . . . . . . . . . . . . . . . . . . . . . . . Combat Hostiles . | . . . . . . . . . . . . . . . . . . . . . . . . . . . . Parts Fried . | . . . . . . . . . . . . . . . . . . . . . . . . . . . . Impact Corruptions . | . . . . . . . . . . . . . . . . . . . . . . . . . . . . Robots Melted 9 | . . . . . 2 . 1 2 . . . . 1 . . . . 2 . 1 . . . . . . . Combat Hostiles 5 | . . . . . 1 . 1 1 . . . . . . . . . 1 . 1 . . . . . . . Parts Melted 53 | . 2 . . 1 17 7 1 1 . 3 1 . 6 1 2 . 1 6 . 3 1 . . . . . . Heat Transferred 24494 | 444 1850 346 . 409 5404 2486 1608 1484 . 407 370 259 2087 185 888 . 1480 1994 111 777 758 740 407 . . . . Parts Sabotaged 2 | . . . . . . . . . . . . . . . . . . . . . . . . . . 2 . Parts Stolen 1 | . . . . . . . 1 . . . . . . . . . . . . . . . . . . . . Parts Stripped . | . . . . . . . . . . . . . . . . . . . . . . . . . . . . Power Chain Reactions . | . . . . . . . . . . . . . . . . . . . . . . . . . . . . Missiles Intercepted . | . . . . . . . . . . . . . . . . . . . . . . . . . . . . Alert | -11 -10 -10 -10 -9 -8 -7 -7 -7 -7 -6 -6 -6 -6 -6 -6 -6 -5 -5 -5 -5 -5 -4 -4 -4 -4 -4 -3 ------- Run | Jun Mat Min Exi Min Mat Fac Low Low Zio Pro Fac Was Fac Low Low Dat Pro Fac Upp Upp Zhi Pro Fac Upp Upp War Pro Peak Influence 505 | 40 305 121 . 70 463 505 . . . . 89 57 336 . . . . 218 . . . . 428 . . . . Initial 172 | . 26 76 . . . 172 . . . . 69 31 39 . . . . . . . . . 12 . . . . Average 148 | 19 102 107 . 33 213 315 . . . . 81 52 142 . . . . 69 . . . . 153 . . . . Maximum Alert Level 2 | . 1 . . . 2 2 . . . . . . 1 . . . . 1 . . . . 2 . . . . Low Security (%) 68 | 100 94 100 . 100 47 2 . . . . 100 100 75 . . . . 94 . . . . 66 . . . . Level 1 27 | . 5 . . . 46 80 . . . . . . 24 . . . . 5 . . . . 31 . . . . Level 2 3 | . . . . . 6 16 . . . . . . . . . . . . . . . . 1 . . . . Level 3 . | . . . . . . . . . . . . . . . . . . . . . . . . . . . . Level 4 . | . . . . . . . . . . . . . . . . . . . . . . . . . . . . Level 5 . | . . . . . . . . . . . . . . . . . . . . . . . . . . . . High Security . | . . . . . . . . . . . . . . . . . . . . . . . . . . . . Max Security . | . . . . . . . . . . . . . . . . . . . . . . . . . . . . Squads Dispatched 33 | . 2 . . . 5 2 . . . . 1 . 10 . . . . 6 . . . . 7 . . . . Investigation 8 | . 1 . . . 2 . . . . . . . 1 . . . . 1 . . . . 3 . . . . Extermination 9 | . . . . . . 2 . . . . . . 2 . . . . 3 . . . . 2 . . . . Reinforcement 12 | . 1 . . . 2 . . . . . 1 . 4 . . . . 2 . . . . 2 . . . . Assault . | . . . . . . . . . . . . . . . . . . . . . . . . . . . . Garrison 4 | . . . . . 1 . . . . . . . 3 . . . . . . . . . . . . . . Intercept . | . . . . . . . . . . . . . . . . . . . . . . . . . . . . Searches Triggered . | . . . . . . . . . . . . . . . . . . . . . . . . . . . . Data Miner Redirects 2 | . . . . . . . . . . . . . . . . . . 1 . . . . 1 . . . . Construction Impeded 2 | . . . . . . . . . . . . . 2 . . . . . . . . . . . . . . Haulers Reinforced 1 | . . . . . . . . . . . . . . . . . . 1 . . . . . . . . . Active Scanning Responses . | . . . . . . . . . . . . . . . . . . . . . . . . . . . . Cargo Convoy Interrupts . | . . . . . . . . . . . . . . . . . . . . . . . . . . . . Stealth | -11 -10 -10 -10 -9 -8 -7 -7 -7 -7 -6 -6 -6 -6 -6 -6 -6 -5 -5 -5 -5 -5 -4 -4 -4 -4 -4 -3 --------- Run | Jun Mat Min Exi Min Mat Fac Low Low Zio Pro Fac Was Fac Low Low Dat Pro Fac Upp Upp Zhi Pro Fac Upp Upp War Pro Distress Signals 15 | . . . . 1 5 2 . . . . . . 1 . . . . 1 . . . . 5 . . . . Communications Jammed 7 | . . . . . . . . . . . . . . . . . . . . . . . . . . 4 3 Distress Signals 5 | . . . . . . . . . . . . . . . . . . . . . . . . . . 4 1 Times Spotted 309 | . 20 2 . 3 42 23 9 2 . 11 3 1 25 5 6 . 11 18 . 15 . 12 44 11 12 23 11 Peak Tracking Total 19 | . 5 2 . 3 5 5 4 1 . 4 2 1 5 5 4 . 5 7 . 6 . 4 9 5 9 19 8 Tactical Retreats 27 | . 2 . . . 1 1 . . . . . . 3 . . . 2 1 . . . . 10 3 3 . 1 Traps | -11 -10 -10 -10 -9 -8 -7 -7 -7 -7 -6 -6 -6 -6 -6 -6 -6 -5 -5 -5 -5 -5 -4 -4 -4 -4 -4 -3 ------- Run | Jun Mat Min Exi Min Mat Fac Low Low Zio Pro Fac Was Fac Low Low Dat Pro Fac Upp Upp Zhi Pro Fac Upp Upp War Pro Traps Triggered 7 | . 1 . . . . . . . . . 1 . 1 . . . . . . . . . 2 . . 2 . Indirectly . | . . . . . . . . . . . . . . . . . . . . . . . . . . . . Trap Hack Attempts . | . . . . . . . . . . . . . . . . . . . . . . . . . . . . Triggered . | . . . . . . . . . . . . . . . . . . . . . . . . . . . . Disarmed . | . . . . . . . . . . . . . . . . . . . . . . . . . . . . Reprogrammed . | . . . . . . . . . . . . . . . . . . . . . . . . . . . . Reused . | . . . . . . . . . . . . . . . . . . . . . . . . . . . . Traps Extracted . | . . . . . . . . . . . . . . . . . . . . . . . . . . . . Installed . | . . . . . . . . . . . . . . . . . . . . . . . . . . . . Triggered 10 | . . . . . . . . . . . . . . . 1 . . . . . . . . 1 3 4 1 Machines | -11 -10 -10 -10 -9 -8 -7 -7 -7 -7 -6 -6 -6 -6 -6 -6 -6 -5 -5 -5 -5 -5 -4 -4 -4 -4 -4 -3 ---------- Run | Jun Mat Min Exi Min Mat Fac Low Low Zio Pro Fac Was Fac Low Low Dat Pro Fac Upp Upp Zhi Pro Fac Upp Upp War Pro Machines Disabled 14 | . . . . . 1 2 . 1 . . . . 4 . . . . 1 1 . 3 . 1 . . . . Max in Single Turn 3 | . . . . . 1 1 . 1 . . . . 3 . . . . 1 1 . 1 . 1 . . . . Garrison Access 1 | . . . . . 1 . . . . . . . . . . . . . . . . . . . . . . Machines Repaired . | . . . . . . . . . . . . . . . . . . . . . . . . . . . . Machines Sabotaged . | . . . . . . . . . . . . . . . . . . . . . . . . . . . . Overloaded Fab Kills . | . . . . . . . . . . . . . . . . . . . . . . . . . . . . Hacking | -11 -10 -10 -10 -9 -8 -7 -7 -7 -7 -6 -6 -6 -6 -6 -6 -6 -5 -5 -5 -5 -5 -4 -4 -4 -4 -4 -3 --------- Run | Jun Mat Min Exi Min Mat Fac Low Low Zio Pro Fac Was Fac Low Low Dat Pro Fac Upp Upp Zhi Pro Fac Upp Upp War Pro Machines Accessed 65 | . 2 1 1 . 8 15 . 2 . . . . 7 . . 3 1 9 . 1 4 . 9 . . 2 . Terminals 31 | . 2 . . . 6 8 . . . . . . 4 . . . 1 4 . . . . 6 . . . . Fabricators 8 | . . . . . . 2 . . . . . . 1 . . . . 4 . . . . 1 . . . . Repair Stations 1 | . . . . . 1 . . . . . . . . . . . . . . . . . . . . . . Recycling Units 5 | . . . . . . 3 . . . . . . . . . . . . . . . . 2 . . . . Scanalyzers 2 | . . . . . . 1 . . . . . . 1 . . . . . . . . . . . . . . Garrison Access 4 | . . . . . 1 1 . . . . . . 1 . . . . 1 . . . . . . . . . Total Hacks 199 | . 9 1 4 . 23 41 . 9 . . . . 20 . . 21 1 21 . 1 17 . 25 . . 6 . Successful 114 | . 5 1 4 . 5 18 . 9 . . . . 9 . . 21 1 7 . 1 17 . 10 . . 6 . Failed 85 | . 4 . . . 18 23 . . . . . . 11 . . . . 14 . . . . 15 . . . . Catastrophic 22 | . 1 . . . 2 6 . . . . . . 3 . . . . 7 . . . . 3 . . . . Database Lockouts . | . . . . . . . . . . . . . . . . . . . . . . . . . . . . Manual 49 | . 2 . . . 5 19 . . 4 . . . 5 . . . . 6 . . . . 7 . . 1 . Terminals 91 | . 9 . . . 20 20 . . . . . . 12 . . . 1 10 . . . . 19 . . . . Fabricators 23 | . . . . . . 10 . . . . . . 3 . . . . 9 . . . . 1 . . . . Repair Stations 2 | . . . . . 2 . . . . . . . . . . . . . . . . . . . . . . Recycling Units 11 | . . . . . . 6 . . . . . . . . . . . . . . . . 5 . . . . Scanalyzers 6 | . . . . . . 3 . . . . . . 3 . . . . . . . . . . . . . . Garrison Access 7 | . . . . . 1 2 . . . . . . 2 . . . . 2 . . . . . . . . . Terminal Hacks 90 | . 4 1 4 . 2 7 . 9 . . . . 5 . . 21 1 5 . 1 17 . 7 . . 6 . Record 24 | . . . 4 . . . . 8 . . . . . . . 6 1 . . . 5 . . . . . . Part Schematic 12 | . . . . . . . . . . . . . . . . 8 . . . . 4 . . . . . . Robot Schematic 5 | . . . . . . 1 . . . . . . . . . 4 . . . . . . . . . . . Robot Analysis 6 | . 1 . . . . . . . . . . . . . . . . 1 . . 4 . . . . . . Prototype ID Bank 16 | . 1 . . . . 1 . . . . . . . . . 3 . 1 . . 4 . 1 . . 5 . Open Door 4 | . . 1 . . . . . 1 . . . . . . . . . . . 1 . . . . . 1 . Open DSF 1 | . . . . . . . . . . . . . 1 . . . . . . . . . . . . . . Level Access Points 2 | . 1 . . . . . . . . . . . . . . . . . . . . . 1 . . . . Branch Access Points 4 | . . . . . . 1 . . . . . . 1 . . . . 1 . . . . 1 . . . . Emergency Access Points 1 | . . . . . . . . . . . . . . . . . . . . . . . 1 . . . . Terminal Index 1 | . . . . . . . . . . . . . 1 . . . . . . . . . . . . . . Alert Level 4 | . . . . . . 1 . . . . . . 1 . . . . 2 . . . . . . . . . Unreport Threat 1 | . . . . . . 1 . . . . . . . . . . . . . . . . . . . . . Locate Traps 4 | . . . . . 1 1 . . . . . . . . . . . . . . . . 2 . . . . Zone Layout 5 | . 1 . . . 1 1 . . . . . . 1 . . . . . . . . . 1 . . . . Fabricator Hacks 6 | . . . . . . 3 . . . . . . 1 . . . . 2 . . . . . . . . . Network Status 3 | . . . . . . 1 . . . . . . 1 . . . . 1 . . . . . . . . . Build 3 | . . . . . . 2 . . . . . . . . . . . 1 . . . . . . . . . Repair Station Hacks 2 | . . . . . 2 . . . . . . . . . . . . . . . . . . . . . . Scan Component 1 | . . . . . 1 . . . . . . . . . . . . . . . . . . . . . . Repair 1 | . . . . . 1 . . . . . . . . . . . . . . . . . . . . . . Recycling Unit Hacks 4 | . . . . . . 2 . . . . . . . . . . . . . . . . 2 . . . . Retrieve Matter 1 | . . . . . . . . . . . . . . . . . . . . . . . 1 . . . . Retrieve Components 3 | . . . . . . 2 . . . . . . . . . . . . . . . . 1 . . . . Scanalyzer 2 | . . . . . . . . . . . . . 2 . . . . . . . . . . . . . . Insert Component 1 | . . . . . . . . . . . . . 1 . . . . . . . . . . . . . . Analyze 1 | . . . . . . . . . . . . . 1 . . . . . . . . . . . . . . Garrison Access Hacks 1 | . . . . . 1 . . . . . . . . . . . . . . . . . . . . . . Seal Access 1 | . . . . . 1 . . . . . . . . . . . . . . . . . . . . . . Unauthorized Hacks 9 | . 1 . . . . 6 . . . . . . 1 . . . . . . . . . 1 . . . . Terminals 2 | . 1 . . . . 1 . . . . . . . . . . . . . . . . . . . . . Assimilate 2 | . 1 . . . . 1 . . . . . . . . . . . . . . . . . . . . . Fabricators 4 | . . . . . . 2 . . . . . . 1 . . . . . . . . . 1 . . . . Liberate 2 | . . . . . . 1 . . . . . . . . . . . . . . . . 1 . . . . Haulers 2 | . . . . . . 1 . . . . . . 1 . . . . . . . . . . . . . . Repair Stations . | . . . . . . . . . . . . . . . . . . . . . . . . . . . . Recycling Units 3 | . . . . . . 3 . . . . . . . . . . . . . . . . . . . . . Reject 2 | . . . . . . 2 . . . . . . . . . . . . . . . . . . . . . Recyclers 1 | . . . . . . 1 . . . . . . . . . . . . . . . . . . . . . Scanalyzers . | . . . . . . . . . . . . . . . . . . . . . . . . . . . . Garrison Access . | . . . . . . . . . . . . . . . . . . . . . . . . . . . . Data Cores Recovered . | . . . . . . . . . . . . . . . . . . . . . . . . . . . . Used . | . . . . . . . . . . . . . . . . . . . . . . . . . . . . Hacking Detections 47 | . 2 . . . 7 15 . . . . . . 6 . . . . 9 . . . . 8 . . . . Full Trace Events 7 | . . . . . 3 . . . . . . . . . . . . 1 . . . . 3 . . . . Feedback Events 1 | . . . . . . . . . . . . . . . . . . . . . . . 1 . . . . Corruption 1 | . . . . . . . . . . . . . . . . . . . . . . . 1 . . . . Feedback Blocked . | . . . . . . . . . . . . . . . . . . . . . . . . . . . . Robot Schematics Acquired 8 | . . . . . . 1 . . 3 . . . . . . 4 . . . . . . . . . . . Robots Built 4 | . . . . . . 1 . . . . . . . . . . . 3 . . . . . . . . . Authchips . | . . . . . . . . . . . . . . . . . . . . . . . . . . . . Time 148 | . . . . . . 81 . . . . . . . . . . . 67 . . . . . . . . . Total Robot Build Rating 13 | . . . . . . 1 . . . . . . . . . . . 12 . . . . . . . . . Part Schematics Acquired 27 | . . . . . . . . . 15 . . . . . . 8 . . . . 4 . . . . . . Parts Built 1 | . . . . . . 1 . . . . . . . . . . . . . . . . . . . . . Authchips . | . . . . . . . . . . . . . . . . . . . . . . . . . . . . Time 35 | . . . . . . 35 . . . . . . . . . . . . . . . . . . . . . Total Part Build Rating 6 | . . . . . . 6 . . . . . . . . . . . . . . . . . . . . . Parts Repaired 1 | . . . . . 1 . . . . . . . . . . . . . . . . . . . . . . Time 26 | . . . . . 26 . . . . . . . . . . . . . . . . . . . . . . Parts Recycled . | . . . . . . . . . . . . . . . . . . . . . . . . . . . . Recycled Matter . | . . . . . . . . . . . . . . . . . . . . . . . . . . . . Retrieved Matter . | . . . . . . . . . . . . . . . . . . . . . . . . . . . . Retrieved Components 11 | . . . . . . 11 . . . . . . . . . . . . . . . . . . . . . Parts Scanalyzed 1 | . . . . . . . . . . . . . 1 . . . . . . . . . . . . . . Part Schematics Acquired . | . . . . . . . . . . . . . . . . . . . . . . . . . . . . Parts Damaged . | . . . . . . . . . . . . . . . . . . . . . . . . . . . . Bothacking | -11 -10 -10 -10 -9 -8 -7 -7 -7 -7 -6 -6 -6 -6 -6 -6 -6 -5 -5 -5 -5 -5 -4 -4 -4 -4 -4 -3 ------------ Run | Jun Mat Min Exi Min Mat Fac Low Low Zio Pro Fac Was Fac Low Low Dat Pro Fac Upp Upp Zhi Pro Fac Upp Upp War Pro Used RIF Installer . | . . . . . . . . . . . . . . . . . . . . . . . . . . . . Robots Hacked . | . . . . . . . . . . . . . . . . . . . . . . . . . . . . Non-combat . | . . . . . . . . . . . . . . . . . . . . . . . . . . . . Combat . | . . . . . . . . . . . . . . . . . . . . . . . . . . . . Robot Hacks Applied . | . . . . . . . . . . . . . . . . . . . . . . . . . . . . Relay Couplers Released . | . . . . . . . . . . . . . . . . . . . . . . . . . . . . Fabnet Peak Effective % . | . . . . . . . . . . . . . . . . . . . . . . . . . . . . Robots Rewired 8 | . . . . . . . . 3 . . . . . . . . . . . . . . . . . 5 . Allies Hacked 3 | . . . . . . 2 . . . . . . . . . . . . . . . . . . . 1 . Hacks Repelled . | . . . . . . . . . . . . . . . . . . . . . . . . . . . . Allies | -11 -10 -10 -10 -9 -8 -7 -7 -7 -7 -6 -6 -6 -6 -6 -6 -6 -5 -5 -5 -5 -5 -4 -4 -4 -4 -4 -3 -------- Run | Jun Mat Min Exi Min Mat Fac Low Low Zio Pro Fac Was Fac Low Low Dat Pro Fac Upp Upp Zhi Pro Fac Upp Upp War Pro Total Allies 20 | . 1 . . . . 2 . 3 5 . . . . . . . 1 3 . . . . . . . 5 . Largest Group 5 | . 1 1 1 1 . 1 1 3 5 5 . . . . . . 1 3 . . . . . . . 5 . Highest-Rated Group 265 | . 10 10 10 10 . 26 23 93 99 99 . . . . . . 96 90 . . . . . . . 265 . Highest-Rated Ally 96 | . 10 10 10 10 . 26 23 31 31 31 . . . . . . 96 30 . . . . . . . 65 . Total Orders 2 | . . . . . . . . . . . . . . . . . . 1 . . . . . . . 1 . GUARD 2 | . . . . . . . . . . . . . . . . . . 1 . . . . . . . 1 . Ally Attacks 115 | . . . . . . . . 16 . 20 . . . . . . 19 5 . . . . . . . 55 . Total Damage 3145 | . . . . . . . . 253 . 283 . . . . . . 657 202 . . . . . . . 1750 . Kills 26 | . . . . . . . . 3 . 2 . . . . . . 3 3 . . . . . . . 15 . Allies Corrupted . | . . . . . . . . . . . . . . . . . . . . . . . . . . . . Allies Melted . | . . . . . . . . . . . . . . . . . . . . . . . . . . . . Intel | -11 -10 -10 -10 -9 -8 -7 -7 -7 -7 -6 -6 -6 -6 -6 -6 -6 -5 -5 -5 -5 -5 -4 -4 -4 -4 -4 -3 ------- Run | Jun Mat Min Exi Min Mat Fac Low Low Zio Pro Fac Was Fac Low Low Dat Pro Fac Upp Upp Zhi Pro Fac Upp Upp War Pro Robot Analysis Total 6 | . 1 . . . . . . . . . . . . . . . . 1 . . 4 . . . . . . Derelict Logs Recovered 13 | . . 1 . 1 . . 2 1 2 . . . . . 2 . 2 . . 1 . . . . 1 . . Drone Launches . | . . . . . . . . . . . . . . . . . . . . . . . . . . . . Drone Recoveries . | . . . . . . . . . . . . . . . . . . . . . . . . . . . . Exploration | -11 -10 -10 -10 -9 -8 -7 -7 -7 -7 -6 -6 -6 -6 -6 -6 -6 -5 -5 -5 -5 -5 -4 -4 -4 -4 -4 -3 ------------- Run | Jun Mat Min Exi Min Mat Fac Low Low Zio Pro Fac Was Fac Low Low Dat Pro Fac Upp Upp Zhi Pro Fac Upp Upp War Pro Turns Passed 17443 | 140 971 243 233 624 1615 1247 459 521 1282 384 217 360 1049 267 581 175 938 1505 350 450 578 467 903 162 298 1164 260 Spaces Moved 12354 | 60 428 169 186 464 755 985 297 318 1026 205 169 311 746 219 270 93 610 957 300 334 372 278 921 183 426 939 333 Core 535 | . . . . . . . . . . . . . . . . . . . . . . . . 31 426 78 . Treads 1 | . . . . . . . . . . . . . . . . . . 1 . . . . . . . . . Legs 8258 | 60 428 169 186 464 755 985 297 318 1026 205 169 311 746 219 270 93 569 22 . . 281 19 . . . 666 . Wheels 2196 | . . . . . . . . . . . . . . . . . 41 934 300 334 91 259 237 . . . . Hover 750 | . . . . . . . . . . . . . . . . . . . . . . . 74 148 . 195 333 Flight 614 | . . . . . . . . . . . . . . . . . . . . . . . 610 4 . . . Fastest Speed 24 | 120 120 120 120 120 105 97 105 97 120 112 102 102 102 102 102 185 95 86 108 108 108 115 24 39 50 45 35 Average Speed 106 | 120 120 120 120 120 118 103 112 127 120 119 104 102 105 103 184 185 132 110 108 108 128 122 56 53 56 99 44 Slowest Speed 320 | 120 120 120 120 120 120 105 185 185 120 120 108 102 186 104 185 185 270 320 108 108 260 145 140 70 150 120 45 Overloaded Moves 13 | . . . . . . . . . . . . . . . . . . . . . . . . . . . 13 Propulsion Burnouts . | . . . . . . . . . . . . . . . . . . . . . . . . . . . . Robots Hopped 5 | . . . . . . . . . . . . . . . . . . . . . . . 5 . . . . Cave-ins Triggered 4 | . . . . . . . . . . 2 . . 1 . . . . . . . . . . . 1 . . Teleports 1 | . . . . . . . . . . . . . . . . . . . . . . . 1 . . . . Exploration Rate (%) 51 | 3 47 44 60 88 58 31 48 49 84 42 7 97 21 40 49 69 76 24 50 51 61 52 24 49 66 88 56 Regions Visited 27 Branch Regions 19 Pre-discovered Areas 11 | . . . 1 1 . . . 3 . . . . . . 2 1 . . . . 3 . . . . . . Known Exits Taken 10 | . . . . . . 1 1 1 1 1 . . 1 1 . . 1 1 . . . . 1 . . . . Unknown Exits Taken 15 | 1 1 1 1 1 1 . . . . . . . . . 1 1 . . 1 1 1 1 . 1 1 1 . Scrap Searched 22 | . . . . . . . 1 5 1 . . . . 2 2 . 5 . 1 . . . . 1 3 . 1 Spaces Dug 101 | . . . . . . . 16 . . 14 . . 23 . . . . 7 8 . 9 . 6 . 6 9 3 Terrain Destroyed 679 | . . . . . 2 43 19 . . 47 . 43 103 53 60 . 25 9 8 118 9 77 33 12 6 9 3 Melee 39 | . . . . . . . . . . . . . . . . . . 7 8 . . . 6 . 6 9 3 Projectile 53 | . . . . . . . 19 . . 14 . . 9 . . . . 2 . . 9 . . . . . . AOE 587 | . . . . . 2 43 . . . 33 . 43 94 53 60 . 25 . . 118 . 77 27 12 . . . Terrain Rammed . | . . . . . . . . . . . . . . . . . . . . . . . . . . . . Walls Destroyed . | . . . . . . . . . . . . . . . . . . . . . . . . . . . . Machines Disabled . | . . . . . . . . . . . . . . . . . . . . . . . . . . . . Actions | -11 -10 -10 -10 -9 -8 -7 -7 -7 -7 -6 -6 -6 -6 -6 -6 -6 -5 -5 -5 -5 -5 -4 -4 -4 -4 -4 -3 --------- Run | Jun Mat Min Exi Min Mat Fac Low Low Zio Pro Fac Was Fac Low Low Dat Pro Fac Upp Upp Zhi Pro Fac Upp Upp War Pro Total 15349 | 94 804 199 196 514 1259 1120 356 392 1076 296 195 338 909 246 318 96 688 1279 313 387 436 367 1196 238 457 1142 438 Wait 1436 | . 280 8 . 35 297 9 12 8 50 45 . . 54 11 10 . 11 132 1 . . 47 153 39 10 125 99 Move 12315 | 59 427 168 185 463 754 984 296 317 1025 202 169 310 744 218 269 92 609 956 299 333 371 277 910 182 425 938 333 Hop 5 | . . . . . . . . . . . . . . . . . . . . . . . 5 . . . . Pick Up 151 | 7 18 5 5 1 19 12 . 3 . . 2 1 12 2 5 . 4 20 2 4 9 1 10 2 . 7 . Fast Attach 132 | 1 2 . 3 . 10 8 1 2 . . 5 7 8 2 1 2 9 24 . 3 9 2 16 1 5 10 1 Attach 113 | . 1 1 . . 6 4 2 1 . 7 3 . 12 1 7 . 5 19 1 4 3 8 15 5 3 5 . Detach 39 | . . . . . 1 2 . . . 1 2 . 2 2 1 . 1 9 . 2 2 3 3 4 1 3 . Swap 121 | 2 5 3 . 2 20 19 1 5 . 5 3 2 12 3 2 . 7 17 . 2 2 2 1 1 . 5 . Drop 183 | 7 20 6 3 2 31 22 . 7 . 1 4 7 5 1 2 2 5 18 1 4 17 . 11 . . 7 . Fire 617 | 18 46 7 . 9 112 44 43 21 1 33 7 11 48 6 21 . 37 39 . 35 23 27 28 1 . . . Melee 117 | . . . . . . . . . . . . . . . . . . 44 9 . . . 28 3 13 16 4 Ram 1 | . . . . . . . . . . . . . . . . . . . . . . . . . . . 1 Kick 39 | . 5 1 . 2 9 10 1 . . . . . 11 . . . . . . . . . . . . . . Crush . | . . . . . . . . . . . . . . . . . . . . . . . . . . . . Escape Stasis 24 | . . . . . . 5 . . . 2 . . 1 . . . . . . . . . 16 . . . . Rewire 56 | . . . . . . 1 . 28 . . . . . . . . . 1 . . . . . . . 26 . Trap . | . . . . . . . . . . . . . . . . . . . . . . . . . . . . Miscellaneous . | . . . . . . . . . . . . . . . . . . . . . . . . . . . . Route ------- -11/Junkyard -10/Materials (discovered 4 exits: *Mat x3 / *Min) -10/Mines (discovered 2 exits: *Mat / *Exi) -10/Exiles (discovered 2 exits: [*Min x2]) -9/Mines -8/Materials (discovered 3 exits: *Fac x2 / [*Sto]) -7/Factory (discovered 4 exits: *Fac x2 / *Low x2) -7/Lower Caves -7/Lower Caves (discovered 2 exits: *Fac / *Zio) -7/Zion (discovered 2 exits: *Dee / *Pro) -6/Proximity Caves -6/Factory (discovered 3 exits: Fac x3) -6/Waste -6/Factory (discovered 2 exits: *Low x2) -6/Lower Caves -6/Lower Caves -6/Data Miner -5/Proximity Caves -5/Factory (discovered 4 exits: *Upp x2 / Ext x2) -5/Upper Caves -5/Upper Caves (discovered 2 exits: *Fac / *Zhi) -5/Zhirov -4/Proximity Caves -4/Factory (discovered 7 exits: Res x4 / *Upp x2 / Arm) -4/Upper Caves -4/Upper Caves (discovered 2 exits: *Res / *War) -4/Warlord -3/Proximity Caves History --------- Turn | Location | Event 20 | -11/Junkyard | Discovered new exit (range 3) 141 | -11/Junkyard | Entered Materials 304 | -10/Materials | Build established: Mutant 448 | -10/Materials | Discovered new exit (range 13) 977 | -10/Materials | Identified exit to Materials 992 | -10/Materials | Discovered new exit (range 9) 1112 | -10/Materials | Entered Mines 1112 | -10/Mines | Accompanied by 1 ally 1125 | -10/Mines | Learned Materials emergency access door positions 1136 | -10/Mines | Met a Derelict bent on vengeance 1246 | -10/Mines | Build established: Scavenger-Mutant 1256 | -10/Mines | Discovered exit to Materials (range 8) 1313 | -10/Mines | Met a Derelict who couldn't figure out how to use a Trap Extractor 1349 | -10/Mines | Deemed a non-threat by the Exiles lab entrance 1350 | -10/Mines | Discovered new exit (range 5) 1355 | -10/Mines | Entered Exiles 1355 | -10/Exiles | Accompanied by 1 ally 1373 | -10/Exiles | Discovered new exit (range 14) 1389 | -10/Exiles | Met 8R-AWN 1408 | -10/Exiles | Met EX-HEX 1453 | -10/Exiles | Met EX-DEC 1480 | -10/Exiles | Met EX-BIN 1501 | -10/Exiles | Learned location of Zion (-7) 1579 | -10/Exiles | Discovered new exit (range 10) 1588 | -10/Exiles | Entered Mines 1588 | -9/Mines | Accompanied by 1 ally 1600 | -9/Mines | Learned location of Storage (-8) 2188 | -9/Mines | Discovered new exit (range 11) 2212 | -9/Mines | Entered Materials 2212 | -8/Materials | Evolved 4 slots: Propulsion x2, Utility x2 2837 | -8/Materials | Repaired Aluminum Leg 2928 | -8/Materials | Discovered new exit (range 16) 2998 | -8/Materials | Garrison activated, responded to threat 3184 | -8/Materials | Discovered new exit (range 3) 3444 | -8/Materials | Discovered new exit (range 16) 3827 | -8/Materials | Entered Factory 3827 | -7/Factory | Evolved 2 slots: Utility x2 4051 | -7/Factory | Fabricated A-02 Transporter (x1) 4117 | -7/Factory | Discovered new exit (range 9) 4125 | -7/Factory | Identified exit to Factory 4375 | -7/Factory | Discovered exit to Factory (range 10) 4487 | -7/Factory | Found Prototype Launcher 4487 | -7/Factory | Identified Rocket Array 4612 | -7/Factory | Fabricated Lrn. Proton Cannon? 4727 | -7/Factory | Identified exit to Lower Caves 5074 | -7/Factory | Entered Lower Caves 5074 | -7/Lower Caves | Accompanied by 1 ally 5100 | -7/Lower Caves | Learned Factory stockpile data 5141 | -7/Lower Caves | Learned Factory non-interactive machine intel 5421 | -7/Lower Caves | Spotted B-75 Beast 5507 | -7/Lower Caves | Discovered new exit (range 15) 5531 | -7/Lower Caves | Identified exit to Lower Caves 5533 | -7/Lower Caves | Entered another Lower Caves area 5613 | -7/Lower Caves | Attacked by a delusional Derelict stockpiling Unaware 5749 | -7/Lower Caves | Discovered exit to Factory (range 9) 5918 | -7/Lower Caves | Learned location of Extension (-5) 5961 | -7/Lower Caves | Learned Extension trap positions 5961 | -7/Lower Caves | Learned Armory terminal intel 6036 | -7/Lower Caves | Discovered new exit (range 4) 6041 | -7/Lower Caves | Identified exit to Zion 6054 | -7/Lower Caves | Entered Zion 6114 | -7/Zion | Discovered new exit (range 9) 6124 | -7/Zion | Identified exit to Proximity Caves 6282 | -7/Zion | Build established: Derelict-Mutant 6614 | -7/Zion | Learned Factory garrison access intel 6633 | -7/Zion | Gained Derelict followers 6693 | -7/Zion | Learned Factory terminal intel 6776 | -7/Zion | Acquired unknown access codes intercepted by a Zionite 6921 | -7/Zion | Opened final containment barrier to the Deep Caves 6942 | -7/Zion | Discovered new exit (range 3) 6942 | -7/Zion | Saw the warning signs outside the Deep Caves entrance 6944 | -7/Zion | Identified exit to Deep Caves 7147 | -7/Zion | Learned location of 1 exit from Lower Caves 7336 | -7/Zion | Entered Proximity Caves 7336 | -6/Proximity Caves | Accompanied by 5 allies 7388 | -6/Proximity Caves | Ambushed by research squad 7591 | -6/Proximity Caves | Spotted B-75 Beast 7686 | -6/Proximity Caves | Crushed by falling debris 7687 | -6/Proximity Caves | Core integrity fell below 50% 7694 | -6/Proximity Caves | Crushed by falling debris 7695 | -6/Proximity Caves | System corruption reached 10% 7720 | -6/Proximity Caves | Entered Factory 7720 | -6/Factory | Evolved 2 slots: Power x1, Propulsion x1 7721 | -6/Factory | Identified exit to Factory 7723 | -6/Factory | Loaded intel: 178 non-interactive machine locations 7724 | -6/Factory | Loaded intel: 26 terminal locations 7725 | -6/Factory | Loaded intel: 4 garrison access locations 7725 | -6/Factory | Lost 5 parts (1p2n2u) 7937 | -6/Factory | Sucked down chute 7937 | -6/Factory | Entered Waste 7937 | -6/Waste | The area was eerily silent 7967 | -6/Waste | Found Damper Plating 7980 | -6/Waste | A Compactor rumbled back to life 7980 | -6/Waste | Spotted C-40 Crusher 8004 | -6/Waste | Destroyed C-40 Crusher 8085 | -6/Waste | Build established: Mutant 8248 | -6/Waste | Discovered new exit (range 16) 8297 | -6/Waste | Entered Factory 8302 | -6/Factory | Identified exit to DSF 8797 | -6/Factory | Crushed by falling debris 8862 | -6/Factory | Garrison activated, responded to threat 8965 | -6/Factory | Lost 9 parts (1p4n3u1w) 9087 | -6/Factory | Identified exit to Lower Caves 9147 | -6/Factory | System corruption reached 10% 9227 | -6/Factory | Build established: Scavenger-Mutant 9346 | -6/Factory | Entered Lower Caves 9347 | -6/Lower Caves | Identified exit to Lower Caves 9511 | -6/Lower Caves | Attracted the attention of an 0b10 checkpoint 9613 | -6/Lower Caves | Entered another Lower Caves area 9656 | -6/Lower Caves | Lost 5 parts (2p1n1u1w) 9919 | -6/Lower Caves | Build established: Mutant 10185 | -6/Lower Caves | Discovered new exit (range 7) 10194 | -6/Lower Caves | Entered Data Miner 10195 | -6/Data Miner | Discovered new exit (range 6) 10231 | -6/Data Miner | Met Data Miner 10264 | -6/Data Miner | Learned location of Section 7 (-2) 10264 | -6/Data Miner | Acquired the access code to Warlord's prototype stash 10295 | -6/Data Miner | Received God Mode back door access code from Data Miner 10369 | -6/Data Miner | Entered Proximity Caves 10536 | -5/Proximity Caves | Escorted by Enhanced Grunt 10750 | -5/Proximity Caves | Learned Factory non-interactive machine intel 10796 | -5/Proximity Caves | Lost 3 parts (1p1u1w) 10899 | -5/Proximity Caves | Spotted B-75 Beast 11160 | -5/Proximity Caves | Core integrity fell below 50% 11210 | -5/Proximity Caves | Lost 12 parts (1p5n4u2w) 11284 | -5/Proximity Caves | Discovered exit to Factory (range 14) 11307 | -5/Proximity Caves | Entered Factory 11307 | -5/Factory | Evolved 2 slots: Utility x2 11308 | -5/Factory | Identified exit to Upper Caves 11309 | -5/Factory | Loaded intel: 218 non-interactive machine locations 11576 | -5/Factory | Lost 11 parts (1p5n3u2w) 11685 | -5/Factory | Lost 3 parts (1p1n1u) 11782 | -5/Factory | Build established: Scavenger-Mutant 11806 | -5/Factory | System corruption reached 10% 11909 | -5/Factory | Fabricated L-41 Fighter? 12019 | -5/Factory | Identified exit to Extension 12532 | -5/Factory | Incoming investigation squad redirected 12778 | -5/Factory | Build established: Hacker-Mutant 12812 | -5/Factory | Entered Upper Caves 12892 | -5/Upper Caves | Encountered a Warlord checkpoint 13154 | -5/Upper Caves | Discovered new exit (range 10) 13162 | -5/Upper Caves | Entered another Upper Caves area 13186 | -5/Upper Caves | Discovered new exit (range 14) 13195 | -5/Upper Caves | Destroyed 8 combat bots 13250 | -5/Upper Caves | Spotted B-75 Beast 13257 | -5/Upper Caves | Attracted the attention of an 0b10 checkpoint 13542 | -5/Upper Caves | Learned location of 1 exit from Factory 13556 | -5/Upper Caves | Discovered new exit (range 12) 13612 | -5/Upper Caves | Entered Zhirov 13613 | -5/Zhirov | Discovered new exit (range 3) 13633 | -5/Zhirov | Met Zhirov 13652 | -5/Zhirov | Learned location of Quarantine (-2) 13652 | -5/Zhirov | Learned location of Testing (-3) 13652 | -5/Zhirov | Learned location of Command (-1) 13662 | -5/Zhirov | Zhirov requested help retrieving the SGEMP Prototype 13682 | -5/Zhirov | Found Alien Artifact 13697 | -5/Zhirov | Found Alien Artifact 13697 | -5/Zhirov | Identified Integrated Dissipator 13697 | -5/Zhirov | Installed Integrated Dissipator, increased core heat dissipation (+20) 13973 | -5/Zhirov | Build established: Mutant 14178 | -5/Zhirov | Cloak Generator disabled 14178 | -5/Zhirov | Attacked by Zhirov 14190 | -5/Zhirov | Entered Proximity Caves 14364 | -4/Proximity Caves | Lost 8 parts (3p1n3u1w) 14649 | -4/Proximity Caves | Discovered new exit (range 8) 14657 | -4/Proximity Caves | Entered Factory 14657 | -4/Factory | Evolved 2 slots: Utility x2 14658 | -4/Factory | Identified exit to Research 15043 | -4/Factory | Spotted B-86 Titan 15061 | -4/Factory | Identified Transdimensional Reconstructor 15061 | -4/Factory | Warped through subspace 15090 | -4/Factory | Lost 14 parts (2p4n4u4w) 15162 | -4/Factory | Spotted B-86 Titan 15191 | -4/Factory | Incoming investigation squad redirected 15358 | -4/Factory | Identified exit to Upper Caves 15358 | -4/Factory | Identified exit to Armory 15560 | -4/Factory | Entered Upper Caves 15563 | -4/Upper Caves | Core integrity fell below 50% 15597 | -4/Upper Caves | Lost 3 parts (2n1w) 15682 | -4/Upper Caves | Attracted the attention of an 0b10 checkpoint 15716 | -4/Upper Caves | Discovered new exit (range 9) 15722 | -4/Upper Caves | Entered another Upper Caves area 15724 | -4/Upper Caves | Attracted the attention of an 0b10 checkpoint 15743 | -4/Upper Caves | Core integrity fell below 20% 15754 | -4/Upper Caves | Lost 6 parts (1p2n3u) 15765 | -4/Upper Caves | Discovered exit to Research (range 5) 15813 | -4/Upper Caves | Learned Research terminal intel 15961 | -4/Upper Caves | Crushed by falling debris 15961 | -4/Upper Caves | System corruption reached 10% 15992 | -4/Upper Caves | Lost 4 parts (1n2u1w) 16016 | -4/Upper Caves | Discovered new exit (range 4) 16020 | -4/Upper Caves | Entered Warlord 16035 | -4/Warlord | Discovered new exit (range 9) 16048 | -4/Warlord | System corruption cleaned by Quarantine Array 16644 | -4/Warlord | Received a Watcher feed algorithm from an ecstatic Tinkerer 16772 | -4/Warlord | Warlord's base attacked by MAIN.C 16836 | -4/Warlord | Build established: Commander-Mutant 16944 | -4/Warlord | Met Warlord 16956 | -4/Warlord | Opened Warlord's prototype stash 16979 | -4/Warlord | Found Prototype Processor 16979 | -4/Warlord | Identified Exp. Targeting Computer 16982 | -4/Warlord | Found Prototype Device 16982 | -4/Warlord | Identified Exp. Focal Shield 17122 | -4/Warlord | Warlord forces counterattacked 17153 | -4/Warlord | Spotted Striker 17166 | -4/Warlord | Allies destroyed Striker 17172 | -4/Warlord | Spotted Executioner 17172 | -4/Warlord | Spotted Striker 17184 | -4/Warlord | Entered Proximity Caves 17444 | -3/Proximity Caves | Destroyed by G-67 Veteran with Plasma Rifle Last Messages --------------- 17187_ N-01 Spotter system corrupted by crushing effect. 17187_ N-01 Spotter destroyed. 17188_ CM-1TV(g) heat spikes uncontrollably. 17189_ Acquired 14 matter. 17190_ CM-1TV(g) heat spikes uncontrollably. 17192_ CM-1TV(g) heat damages Lgt. Angular Momentum Engine. 17193_ CM-1TV(g) heat damages Carbon-fiber Leg. 17351_ Searching scrap... 17351_ Found Mak. Spear. 17351_ Found Lrn. Tractor Beam. 17351_ Found Unknown Hackware. 17351_ Found Biometal Leg. 17351_ Found 32 Matter. 17352_ Acquired Unknown Hackware. 17352_ Identified Mak. System Shield. 17353_ Acquired 16 matter. 17398_ C-30 ARC bursts open, deploying its payload. 17398_ P-80 Master unfolds itself. 17442_ Slammed into M-30 Cleanser. 17443_ M-30 Cleanser distress signal jammed. Map ----- +----------------------------------------------------+ | ?????????????????????????????????????????????????? | | ?????????????????????????????????????????????????? | | ?????????????????????????????????????????????????? | | ?????????????????????????????????????????????????? | | ?????????????????????????????????????????????????? | | ?????????????????????????????????????????????????? | | ?????????????????????????????????????????????????? | | ?????????????????????????????????????????????????? | | ?????????????????????????????????????????????????? | | ?????????????????????????????????????????????????? | | ?????????????????????????????????????????????????? | | ?????????????????????????????????????????????????? | | ????????????????????????????????#????????????????? | | ?????????????#????????????????? #????????????????? | | ?????????## ! ????????????????? #???#????????????? | | ?????????# % #??????????????? #?? ????????????? | | ?????????? #?###??????????# ## ?????????????? | | ???????????# ### ##????????# ??????????????? | | ???????????# ## ###?????? #???????????????? | | ???????????# #?????# #????????????????? | | ????????????# #?????# #?????????????????? | | ????????????# #????? #?????????????????? | | ???????????## ###??? #?????% ?????????? | | ?#####??#### ####l ## ! ! #?????????? | | ?# #### g% g g ;#????????? | | ?# ## @m g ;????????? | | ## ##### ????????? | | #### #????# ????????? | | #??#### #?????# ?????????? | | ##??#### ## #??????# #;; ?????????? | | #???# ## #???????# ###?????????????? | | #???# #####???????? ##???????????????? | | #???# # #????????????? #????????????????? | | # #??????????????#????????????????? | | ## ???????????????????????????????? | | ############## ##??????????????????????????????? | | ##????????????####???????????????????????????????? | | #????????????????????????????????????????????????? | | #???????????????????????????????????????????????? | | #??????????????????????????????????????????????? | | #?????????????????????????????????????????????? | | #?????????????????????????????????????????????? | | #?????????????????????????????????????????????? | | #?????????????????????????????????????????????? | | ##?????????????????????????????????????????????? | | #???????????????????????????????????????????????? | | #????????????????????????????????????????????????? | | ?????????????????????????????????????????????????? | | ?????????????????????????????????????????????????? | | ?????????????????????????????????????????????????? | +----------------------------------------------------+ Best States ------------- Heat Dissipation 91 Coolant Potential 160 Energy Generation 33 Energy Capacity 715 Matter Stores 300 Matter Capacity 300 Sight Range 22 Robot Scan Range 16 Terrain Scan Density 10 ECM Strength 2 Jamming Range 12 Power Amplification 30 Armor Coverage 450 Resistance: KI 25 Resistance: TH 30 Core Shielding 30 Evasion (%) 68 Targeting Accuracy 12 Energy Filtering 30 Offensive Hacking 12 Defensive Hacking 11 Item Schematics ----------------- Mak. Leg | -7/Zion | Archive EM Disruption Field | -7/Zion | Archive Hvy. Rocket Launcher | -7/Zion | Archive Gravmag System | -7/Zion | Archive Gauss Rifle | -7/Zion | Archive Plasma Rifle | -7/Zion | Archive Imp. Trap Scanner | -7/Zion | Archive Recoil Nullifier | -7/Zion | Archive Hvy. Flak Cannon | -7/Zion | Archive Hvy. Ion Cannon | -7/Zion | Archive Imp. Recalibrator | -7/Zion | Archive Arc Projector | -7/Zion | Archive Imp. Cryofiber Web | -7/Zion | Archive Lightning Gun | -7/Zion | Archive Mak. Transmission Jammer | -7/Zion | Archive Combat Drone Bay | -6/Data Miner | Free Lgt. Regenerative Plating | -6/Data Miner | Free Enh. Flexi-carbon Leg | -6/Data Miner | Free Imp. Energy Well | -6/Data Miner | Free Tesla Bomb Launcher | -6/Data Miner | Free Myomer Leg | -6/Data Miner | Free Adv. Thermal Shield | -6/Data Miner | Free Micro-nuke Launcher | -6/Data Miner | Free Assault Drone Bay | -5/Zhirov | Free Exp. Heat Sink | -5/Zhirov | Free Exp. Optical Array | -5/Zhirov | Free Imp. Arc Thrower | -5/Zhirov | Free Robot Schematics ------------------ L-41 Fighter | -7/Factory | Hacked S-27 Virus | -7/Zion | Archive T-07 Excavator | -7/Zion | Archive H-77 Assassin | -7/Zion | Archive A-15 Conveyor | -6/Data Miner | Free B-48 Gladiator | -6/Data Miner | Free B-60 Warrior | -6/Data Miner | Free P-70 Sage | -6/Data Miner | Free Fabricated ------------ A-02 Transporter | x1 | -7/Factory | Preloaded Lrn. Proton Cannon | x1 | -7/Factory | Preloaded L-41 Fighter | x3 | -5/Factory | Preloaded Alien Tech Used ----------------- Integrated Dissipator Transdimensional Reconstructor Achievements -------------- None Challenges ------------ None Game ------ Seed CoreSplicePerforator Manual? 0 Play Time 03:20:37 Cumulative 232.4 hours Start 2023.10.05 @ 23:46:09 End 2023.10.07 @ 22:25:28 Sessions 7 Manual Loads 0 Difficulty Rogue Special Mode None Game No. 189 Rogue 189 Adventurer 0 Explorer 0 Win Type - Total 11 Types 8/0/2/1/0/0/0/0/0 Lore% 81 Gallery% 71 Achievement% 59 Wizard Run 0 Options --------- ASCII 0 Keyboard 0 Movement Numpad Keybinds 0 Fullscreen 2 Font 18/Smallcaps Map View 76x50 Tactical HUD 1 Map Filters NONE Filters NONE Steam 1 RUN: 3ef84abb-a60f-44f8-bbc0-7b5bd1a530d0